fUST/lending_fUST_20250612
["ID","MTS","AMOUNT","RATE_DAILY","PERIOD"]
[365452269,1749679841589,-460.0,0.00022739,4]
[365452271,1749679841599,-460.0,0.00022739,4]
[365452273,1749679841608,-776.25,0.00022739,4]
[365452275,1749679841617,-597.71,0.00022739,4]
[365452277,1749679841626,-761.84,0.00022739,4]
[365452279,1749679841636,-663.73,0.00022739,4]
[365452281,1749679841645,-1269.23,0.00022739,4]
[365452283,1749679841654,-759.63,0.00022739,4]
[365452286,1749679841666,-472.89,0.00022739,4]
[365452287,1749679841675,-1155.012371,0.00022755,3]
[365452289,1749679841684,-91.37037145,0.0002278,2]
[365452292,1749679841700,-908.62962755,0.0002278,2]
[365452294,1749679841709,-600.0,0.00022795,2]
[365452296,1749679841718,-2000.0,0.00022799,2]
[365452298,1749679841727,-1156.88664278,0.00022825,2]
[365452300,1749679841736,-2806.38990393,0.00022831,8]
[365452302,1749679841746,-254.8,0.00022833,6]
[365452304,1749679841755,-2187.91506292,0.0002285,2]
[365452306,1749679841767,-1141.06569073,0.0002285,2]
[365452308,1749679841778,-2750.73635981,0.0002285,2]
[365452312,1749679841805,-295.13588958,0.00021335,2]
[365452314,1749679841814,-500.0,0.00021335,2]
[365452316,1749679841824,-18188.93773956,0.0002285,2]
[365452318,1749679841833,-160.0,0.00022863,4]
[365452320,1749679841842,-3000.0,0.00022898,2]
[365452322,1749679841853,-3000.0,0.000229,2]
[365452324,1749679841863,-3000.0,0.0002291,2]
[365452326,1749679841873,-3000.0,0.0002292,2]
[365452328,1749679841885,-1999.4,0.00022929,2]
[365452330,1749679841898,-3000.0,0.0002293,2]
[365452332,1749679841909,-2806.38990393,0.00022934,8]
[365452334,1749679841918,-5000.0,0.00022935,2]
[365452336,1749679841928,-3000.0,0.0002294,2]
[365452338,1749679841937,-1745.0,0.00022942,3]
[365452340,1749679841946,-504.05556208,0.00022942,3]
[365452342,1749679841955,-166.0,0.00022942,3]
[365452344,1749679841966,-166.0,0.00022942,3]
[365452346,1749679841976,-166.0,0.00022942,3]
[365452348,1749679841985,-166.0,0.00022942,3]
[365452350,1749679841994,-166.0,0.00022942,3]
[365452352,1749679842003,-166.0,0.00022942,3]
[365452354,1749679842018,-317.0,0.00022942,3]
[365452356,1749679842030,-314.0017448,0.00022942,3]
[365452358,1749679842043,-420.0,0.00022943,2]
[365452360,1749679842052,-5803.156711,0.0002295,2]
[365452362,1749679842062,-254.8,0.00022963,6]
[365452364,1749679842072,-168.0,0.00022978,2]
[365452366,1749679842082,-5000.0,0.0002298,2]
[365452368,1749679842091,-4000.0,0.00022989,3]
[365452370,1749679842100,-460.0,0.00022993,4]
[365452372,1749679842110,-644.21,0.00022993,4]
[365452374,1749679842119,-460.0,0.00022993,4]
[365452376,1749679842128,-160.0,0.00023,3]
[365452378,1749679842137,-213.16534259,0.00023,3]
[365452380,1749679842146,-229.71724145,0.00023,3]
[365452382,1749679842156,-200.0,0.00023,2]
[365452384,1749679842168,-160.0,0.00023,3]
[365452386,1749679842178,-835.03886221,0.00023,3]
[365452388,1749679842187,-538.08,0.00023013,2]
[365452390,1749679842196,-856.55,0.00023013,4]
[365452392,1749679842206,-1000.0,0.00023013,4]
[365452394,1749679842215,-460.0,0.00023013,4]
[365452396,1749679842225,-460.0,0.00023013,4]
[365452398,1749679842234,-460.0,0.00023013,4]
[365452400,1749679842243,-776.25,0.00023013,4]
[365452402,1749679842252,-761.84,0.00023013,4]
[365452404,1749679842261,-663.73,0.00023013,4]
[365452406,1749679842270,-1269.23,0.00023013,4]
[365452408,1749679842279,-759.63,0.00023013,4]
[365452410,1749679842289,-472.89,0.00023013,4]
[365452412,1749679842300,-166.0,0.00023014,7]
[365452414,1749679842321,-165.0,0.00023014,7]
[365452416,1749679842330,-600.0,0.0002303,2]
[365452418,1749679842339,-2806.38990393,0.00023038,8]
[365452420,1749679842349,-4000.0,0.00023089,3]
[365452422,1749679842367,-254.8,0.00023092,6]
[365452424,1749679842376,-2806.38990393,0.00023141,8]
[365452426,1749679842386,-500.0,0.00023146,2]
[365452428,1749679842395,-500.0,0.00023146,4]
[365452430,1749679842404,-3193.7,0.00023188,3]
[365452432,1749679842414,-1000.0,0.0002322,5]
[365452434,1749679842424,-254.8,0.00023222,6]
[365452436,1749679842433,-4000.0,0.00023226,3]
[365452438,1749679842443,-1000.0,0.0002324,5]
[365452440,1749679842452,-2806.38990393,0.00023245,8]
[365452442,1749679842461,-168.0,0.00023248,2]
[365452443,1749679842469,-1000.0,0.0002326,5]
[365452444,1749679842479,-1156.88664278,0.00023263,2]
[365452445,1749679842487,-600.0,0.00023265,2]
[365452446,1749679842496,-460.0,0.00023267,4]
[365452447,1749679842505,-644.21,0.00023267,4]
[365452448,1749679842514,-460.0,0.00023267,4]
[365452449,1749679842522,-500.0,0.00023273,2]
[365452450,1749679842531,-500.0,0.00023273,2]
[365452451,1749679842540,-500.0,0.00023273,2]
[365452452,1749679842549,-500.0,0.00023273,2]
[365452453,1749679842558,-500.0,0.00023273,2]
[365452454,1749679842567,-500.0,0.00023273,2]
[365452455,1749679842575,-500.0,0.00023273,2]
[365452456,1749679842584,-263.56352876,0.00023273,2]
[365452457,1749679842593,-503.13665459,0.00023273,2]
[365452458,1749679842602,-500.0,0.00023273,2]
[365452459,1749679842611,-500.0,0.00023273,2]
[365452469,1749679842707,-500.0,0.00023273,2]
[365452472,1749679842732,-500.0,0.00023273,2]
[365452474,1749679842742,-501.60046574,0.00023273,2]
[365452477,1749679842751,-500.0,0.00023273,2]
[365452480,1749679842761,-500.0,0.00023273,2]
[365452483,1749679842770,-500.0,0.00023273,2]
[365452486,1749679842780,-500.0,0.00023273,2]
[365452489,1749679842790,-500.0,0.00023273,2]
[365452492,1749679842799,-500.0,0.00023273,2]
[365452496,1749679842808,-600.0,0.00023273,2]
[365452500,1749679842818,-163.5396541,0.00023273,2]
[365452503,1749679842827,-644.67879016,0.00023273,2]
[365452506,1749679842836,-501.67926998,0.00023273,2]
[365452508,1749679842845,-500.0,0.00023273,2]
[365452510,1749679842854,-500.0,0.00023273,2]
[365452513,1749679842864,-500.0,0.00023273,2]
[365452515,1749679842873,-500.0,0.00023273,2]
[365452517,1749679842886,-501.29367668,0.00023273,2]
[365452518,1749679842895,-500.0,0.00023273,2]
[365452520,1749679842904,-500.0,0.00023273,2]
[365452523,1749679842915,-500.0,0.00023273,2]
[365452525,1749679842924,-505.25960172,0.00023273,2]
[365452528,1749679842934,-500.0,0.00023273,2]
[365452529,1749679842943,-558.02629121,0.00023273,2]
[365452531,1749679842952,-500.0,0.00023273,2]
[365452533,1749679842962,-500.0,0.00023273,2]
[365452536,1749679842973,-1000.0,0.0002328,5]
[365452538,1749679842982,-538.08,0.00023287,2]
[365452540,1749679842991,-856.55,0.00023287,4]
[365452542,1749679843000,-1000.0,0.00023287,4]
[365452545,1749679843009,-460.0,0.00023287,4]
[365452546,1749679843019,-460.0,0.00023287,4]
[365452549,1749679843028,-460.0,0.00023287,4]
[365452551,1749679843037,-776.25,0.00023287,4]
[365452552,1749679843047,-761.84,0.00023287,4]
[365452554,1749679843056,-663.73,0.00023287,4]
[365452557,1749679843065,-1269.23,0.00023287,4]
[365452559,1749679843075,-759.63,0.00023287,4]
[365452562,1749679843084,-472.89,0.00023287,4]
[365452564,1749679843094,-151.0,0.00023288,2]
[365452565,1749679843103,-1386.96,0.00023291,2]
[365452567,1749679843113,-479.38979269,0.00023298,2]
[365452570,1749679843122,-171734.02,0.000233,7]
[365452571,1749679843131,-1000.0,0.000233,5]
[365452574,1749679843140,-844.64040732,0.000233,3]
[365452575,1749679843150,-844.64040732,0.000233,7]
[365452578,1749679843160,-160.0,0.000233,3]
[365452579,1749679843170,-160.0,0.000233,7]
[365452582,1749679843179,-151.0,0.00023315,2]
[365452583,1749679843188,-500.0,0.00023333,9]
[365452586,1749679843197,-500.0,0.00023333,9]
[365452588,1749679843207,-2806.38990393,0.00023348,9]
[365452589,1749679843216,-254.8,0.00023352,6]
[365452591,1749679843226,-765.08602305,0.00023388,2]
[365452594,1749679843235,-7638.90551439,0.000234,7]
[365452596,1749679843244,-7638.90551439,0.000234,7]
[365452597,1749679843253,-2444.58,0.000234,2]
[365452599,1749679843263,-3455.91,0.000234,7]
[365452601,1749679843272,-160.0,0.0002342,2]
[365452603,1749679843281,-800.0,0.00023448,2]
[365452605,1749679843291,-206.0,0.0002345,2]
[365452607,1749679843299,-2806.38990393,0.00023452,9]
[365452609,1749679843309,-254.8,0.00023481,6]
[365452611,1749679843318,-168.0,0.00023498,2]
[365452613,1749679843327,-151.0,0.000235,10]
[365452615,1749679843337,-1561.340192,0.000235,2]
[365452617,1749679843346,-151.0,0.000235,8]
[365452619,1749679843356,-381.2507,0.000235,2]
[365452621,1749679843365,-381.2507,0.000235,2]
[365452623,1749679843375,-600.0,0.000235,2]
[365452625,1749679843385,-5000.0,0.00023528,2]
[365452627,1749679843394,-254.2070293,0.00023534,2]
[365452629,1749679843403,-728.7498136,0.00023534,2]
[365452631,1749679843414,-460.0,0.00023541,4]
[365452633,1749679843423,-644.21,0.00023541,4]
[365452635,1749679843432,-429.46838517,0.00023541,4]
[365452637,1749679843441,-200.0,0.00023555,2]
[365452639,1749679843450,-2806.38990393,0.00023555,9]
[365452641,1749679843460,-160.0,0.00023556,5]
[365452643,1749679843469,-200.0,0.00023561,4]
[365452645,1749679843478,-200.0,0.00023561,4]
[365452647,1749679843488,-200.0,0.00023561,4]
[365452649,1749679843497,-200.0,0.00023561,4]
[365452651,1749679843506,-200.0,0.00023561,4]
[365452653,1749679843516,-200.0,0.00023561,4]
[365452656,1749679843525,-200.0,0.00023561,4]
[365452659,1749679843535,-200.0,0.00023561,4]
[365452661,1749679843544,-538.08,0.00023561,2]
[365452663,1749679843554,-856.55,0.00023561,4]
[365452665,1749679843563,-1000.0,0.00023561,4]
[365452667,1749679843572,-351.83563846,0.00023561,4]
[365452669,1749679843582,-460.0,0.00023561,4]
[365452671,1749679843591,-460.0,0.00023561,4]
[365452673,1749679843600,-776.25,0.00023561,4]
[365452675,1749679843609,-761.84,0.00023561,4]
[365452677,1749679843619,-663.73,0.00023561,4]
[365452679,1749679843628,-1269.23,0.00023561,4]
[365452681,1749679843637,-759.63,0.00023561,4]
[365452683,1749679843648,-472.89,0.00023561,4]
[365452685,1749679843657,-256.84572807,0.00023563,2]
[365452687,1749679843667,-256.84572807,0.00023575,2]
[365452689,1749679843676,-184.0,0.000236,7]
[365452692,1749679843686,-184.0,0.000236,7]
[365452695,1749679843698,-2000.0,0.000236,4]
[365452697,1749679843707,-82270.09937352,0.000236,2]
[365452699,1749679843716,-151.0,0.000236,10]
[365452701,1749679843725,-168.0,0.00023607,2]
[365452703,1749679843734,-254.8,0.00023611,7]
[365452705,1749679843744,-200.0,0.00023626,2]
[365452707,1749679843753,-168.0,0.00023628,2]
[365452709,1749679843762,-256.84572807,0.00023638,2]
[365452711,1749679843771,-256.84572807,0.00023656,2]
[365452712,1749679843780,-2806.38990393,0.00023659,9]
[365452714,1749679843790,-200.0,0.00023664,2]
[365452717,1749679843800,-1000.0,0.00023671,2]
[365452719,1749679843809,-1000.0,0.00023671,2]
[365452720,1749679843819,-1000.0,0.00023671,2]
[365452722,1749679843828,-1000.0,0.00023671,2]
[365452725,1749679843838,-300.70323486,0.00023671,2]
[365452727,1749679843847,-306.0,0.00023671,2]
[365452729,1749679843856,-153.0,0.00023671,2]
[365452731,1749679843866,-217.1484714,0.00023671,2]
[365452732,1749679843875,-1195.8619859,0.00023671,2]
[365452734,1749679843888,-319.1604193,0.00023671,2]
[365452736,1749679843898,-153.0,0.00023671,2]
[365452738,1749679843906,-153.0,0.00023671,2]
[365452740,1749679843916,-600.36420635,0.00023678,2]
[365452742,1749679843926,-5452.53282176,0.00023687,2]
[365452744,1749679843935,-91755.20352086,0.00023687,2]
[365452746,1749679843945,-500.0,0.00023694,2]
[365452748,1749679843955,-500.0,0.00023694,5]
[365452750,1749679843965,-3305.29166937,0.000237,7]
[365452752,1749679843974,-500.0,0.000237,7]
[365452754,1749679843984,-500.0,0.000237,7]
[365452756,1749679843993,-500.0,0.000237,7]
[365452758,1749679844001,-500.0,0.000237,7]
[365452760,1749679844011,-500.0,0.000237,7]
[365452762,1749679844021,-500.0,0.000237,7]
[365452764,1749679844030,-500.0,0.000237,7]
[365452766,1749679844039,-500.0,0.000237,7]
[365452768,1749679844049,-266.0,0.000237,7]
[365452770,1749679844058,-151.0,0.000237,9]
[365452772,1749679844067,-500.0,0.000237,2]
[365452774,1749679844077,-988.7,0.000237,7]
[365452776,1749679844086,-500.0,0.000237,2]
[365452778,1749679844095,-1156.88664278,0.000237,2]
[365452780,1749679844105,-24268.65485301,0.00023725,2]
[365452782,1749679844114,-206.0,0.0002373,2]
[365452784,1749679844123,-1061.58490384,0.00023735,2]
[365452786,1749679844132,-254.8,0.00023741,7]
[365452788,1749679844142,-986.6095058,0.00023753,3]
[365452790,1749679844151,-2806.38990393,0.00023762,9]
[365452792,1749679844162,-500.0,0.00023773,2]
[365452794,1749679844171,-438.97473954,0.00023773,2]
[365452796,1749679844180,-500.0,0.00023773,2]
[365452798,1749679844189,-152.78866891,0.00023773,2]
[365452800,1749679844199,-500.0,0.00023773,2]
[365452802,1749679844208,-1621.70660762,0.000238,2]
[365452804,1749679844217,-118551.23469442,0.000238,3]
[365452807,1749679844231,-1101.379751,0.000238,3]
[365452809,1749679844242,-10490.0,0.000238,3]
[365452811,1749679844254,-8684.73835968,0.000238,3]
[365452813,1749679844265,-562.90186455,0.000238,3]
[365452825,1749679844363,-500.0,0.00021335,2]
[365452827,1749679844372,-500.0,0.00021335,2]
[365452828,1749679844382,-500.0,0.00021335,2]
[365452830,1749679844391,-500.0,0.00021335,2]
[365452832,1749679844400,-500.0,0.00021335,2]
[365452834,1749679844410,-500.0,0.00021335,2]
[365452836,1749679844419,-500.0,0.00021335,2]
[365452838,1749679844428,-818.95631384,0.00021752,2]
[365452840,1749679844437,-3736.37642951,0.000238,3]
[365452858,1749679844593,-17934.10906831,0.000238,3]
[365452860,1749679844605,-456.27,0.000238,3]
[365453034,1749679846358,-818.95631384,0.00022267,2]
[365453035,1749679846367,-709.18368616,0.000238,3]
[365453038,1749679846378,-2802.14627477,0.000238,3]
[365455586,1749679932616,204.605973,0.00013699,2]
[365455634,1749680922133,194.375674,0.00013699,2]
[365455672,1749681032728,-878.28911883,0.000189,2]
[365455673,1749681032738,-21.86803647,0.00019938,2]
[365455674,1749681032890,-2712.7057777,0.00019938,2]
[365455675,1749681032902,-1062.02157903,0.00019938,2]
[365455676,1749681032913,-591.233,0.00019938,2]
[365455712,1749681038652,-30.998793,0.00019938,2]
[365455714,1749681038662,-451.11682652,0.0002,2]
[365455716,1749681038671,-194.375674,0.00020187,2]
[365455718,1749681038681,-789.1244893,0.00020229,2]
[365455720,1749681038691,-444.172565,0.00020233,2]
[365455722,1749681038700,-300.0,0.00020815,2]
[365455724,1749681038710,-300.0,0.00021094,2]
[365455726,1749681038719,-300.0,0.00021094,2]
[365455728,1749681038729,-460.0,0.00021095,4]
[365455730,1749681038738,-460.0,0.00021095,4]
[365455732,1749681038747,-643.1,0.00021095,2]
[365455734,1749681038757,-176.37932673,0.00021095,4]
[365455736,1749681038766,-460.0,0.00021095,4]
[365455738,1749681038775,-460.0,0.00021095,4]
[365455740,1749681038784,-460.0,0.00021095,4]
[365455742,1749681038793,-460.0,0.00021095,4]
[365455744,1749681038803,-460.0,0.00021095,4]
[365455746,1749681038812,-250.0,0.00021095,4]
[365455748,1749681038821,-501.56343184,0.00021095,4]
[365455750,1749681038831,-460.0,0.00021095,4]
[365455753,1749681038841,-754.64,0.00021191,2]
[365455754,1749681038851,-594.33677502,0.00021269,2]
[365455757,1749681038860,-642.07,0.00021347,4]
[365455759,1749681038870,-915.35,0.00021347,4]
[365455760,1749681038880,-460.0,0.00021347,4]
[365455762,1749681038889,-460.0,0.00021347,4]
[365455764,1749681038898,-460.0,0.00021347,4]
[365455767,1749681038908,-460.0,0.00021347,4]
[365455769,1749681038918,-460.0,0.00021347,4]
[365455771,1749681038927,-460.0,0.00021347,4]
[365455772,1749681038936,-460.0,0.00021347,4]
[365455775,1749681038946,-469.14,0.00021347,4]
[365455777,1749681038955,-460.0,0.00021347,4]
[365455778,1749681038965,-460.0,0.00021347,4]
[365455780,1749681038975,-460.0,0.00021347,4]
[365455782,1749681038984,-519.15,0.00021347,4]
[365455784,1749681038993,-1264.19,0.00021347,4]
[365455787,1749681039002,-1001.54,0.00021347,4]
[365455789,1749681039012,-666.5,0.00021347,4]
[365455791,1749681039021,-438.68804243,0.00021347,2]
[365455793,1749681039030,-500.0,0.00021347,2]
[365455795,1749681039040,-500.0,0.00021347,2]
[365455797,1749681039050,-500.0,0.00021347,2]
[365455799,1749681039059,-500.0,0.00021347,2]
[365455800,1749681039069,-500.0,0.00021347,2]
[365455803,1749681039079,-500.0,0.00021347,2]
[365455805,1749681039089,-500.0,0.00021347,2]
[365455807,1749681039098,-500.0,0.00021347,2]
[365455809,1749681039107,-500.0,0.00021347,2]
[365455811,1749681039116,-500.0,0.00021347,2]
[365455813,1749681039127,-500.0,0.00021347,2]
[365455815,1749681039136,-500.0,0.00021347,2]
[365455817,1749681039146,-500.0,0.00021347,2]
[365455819,1749681039155,-500.0,0.00021347,2]
[365455820,1749681039164,-500.0,0.00021347,2]
[365455823,1749681039174,-500.0,0.00021347,2]
[365455825,1749681039183,-500.0,0.00021347,2]
[365455827,1749681039192,-579.51358896,0.00021347,2]
[365455828,1749681039201,-500.0,0.00021347,2]
[365455830,1749681039211,-500.0,0.00021347,2]
[365455833,1749681039220,-500.0,0.00021347,2]
[365455835,1749681039229,-500.0,0.00021347,2]
[365455836,1749681039238,-500.0,0.00021347,2]
[365455839,1749681039247,-500.0,0.00021347,2]
[365455840,1749681039257,-500.0,0.00021347,2]
[365455842,1749681039266,-500.0,0.00021347,2]
[365455845,1749681039276,-500.0,0.00021347,2]
[365455846,1749681039285,-460.0,0.00021347,4]
[365455847,1749681039294,-656.08,0.00021348,4]
[365455848,1749681039303,-460.0,0.00021348,4]
[365455849,1749681039313,-460.0,0.00021348,4]
[365455850,1749681039322,-460.0,0.00021348,4]
[365455851,1749681039331,-460.0,0.00021348,4]
[365455852,1749681039340,-460.0,0.00021348,4]
[365455853,1749681039354,-267.03,0.00021348,2]
[365455854,1749681039363,-460.0,0.00021348,4]
[365455855,1749681039374,-460.0,0.00021348,4]
[365455856,1749681039383,-522.5,0.00021348,4]
[365455857,1749681039392,-460.0,0.00021348,4]
[365455858,1749681039402,-460.0,0.00021348,4]
[365455859,1749681039412,-460.0,0.00021348,4]
[365455860,1749681039421,-460.0,0.00021348,4]
[365455861,1749681039430,-460.0,0.00021348,4]
[365455862,1749681039440,-460.0,0.00021348,4]
[365455863,1749681039449,-460.0,0.00021348,4]
[365455864,1749681039459,-460.0,0.00021348,4]
[365455865,1749681039468,-460.0,0.00021348,4]
[365455866,1749681039477,-460.0,0.00021348,4]
[365455867,1749681039486,-460.0,0.00021348,4]
[365455868,1749681039495,-1096.46,0.00021348,4]
[365455870,1749681039504,-460.0,0.00021348,4]
[365455872,1749681039514,-460.0,0.00021348,4]
[365455874,1749681039523,-460.0,0.00021348,4]
[365455876,1749681039532,-460.0,0.00021369,4]
[365455878,1749681039541,-460.0,0.00021369,4]
[365455880,1749681039550,-643.1,0.00021369,2]
[365455882,1749681039560,-460.0,0.00021369,4]
[365455884,1749681039569,-460.0,0.00021369,4]
[365455886,1749681039578,-460.0,0.00021369,4]
[365455888,1749681039587,-202.91241446,0.00021369,4]
[365455890,1749681039596,-460.0,0.00021369,4]
[365455892,1749681039605,-540.0,0.00021369,4]
[365455894,1749681039614,-5000.0,0.00021533,2]
[365455895,1749681039624,-207.4,0.00021533,2]
[365455898,1749681039633,-3559.39258994,0.00021533,2]
[365455900,1749681039646,-12440.60741006,0.00021533,2]
[365455902,1749681039655,-475.00258128,0.00021533,2]
[365455904,1749681039664,-155.292,0.00021546,2]
[365455906,1749681039674,-200.0,0.0002155,4]
[365455908,1749681039683,-460.0,0.0002155,4]
[365455910,1749681039693,-460.0,0.0002155,4]
[365455912,1749681039702,-1000.0,0.0002155,4]
[365455914,1749681039712,-460.0,0.0002155,4]
[365455916,1749681039721,-460.0,0.0002155,4]
[365455918,1749681039730,-460.0,0.0002155,4]
[365455920,1749681039740,-460.0,0.0002155,4]
[365455922,1749681039751,-1034.59,0.0002155,4]
[365455924,1749681039761,-460.0,0.0002155,4]
[365455926,1749681039770,-160.0,0.00021582,2]
[365455928,1749681039780,-160.0,0.00021582,2]
[365455930,1749681039789,-844.64040732,0.00021582,2]
[365455932,1749681039799,-160.0,0.00021582,2]
[365455934,1749681039808,-229.71724145,0.00021582,2]
[365455936,1749681039817,-160.0,0.00021582,2]
[365455938,1749681039827,-160.0,0.00021582,2]
[365455940,1749681039836,-213.16534259,0.00021582,2]
[365455942,1749681039846,-160.0,0.00021582,2]
[365455944,1749681039856,-160.0,0.00021582,2]
[365455946,1749681039865,-835.03886221,0.00021582,2]
[365455948,1749681039877,-424.19973472,0.00021582,2]
[365455950,1749681039886,-160.0,0.00021582,2]
[365455952,1749681039895,-642.07,0.00021621,4]
[365455954,1749681039905,-915.35,0.00021621,4]
[365455956,1749681039914,-460.0,0.00021621,4]
[365455958,1749681039923,-460.0,0.00021621,4]
[365455960,1749681039933,-460.0,0.00021621,4]
[365455962,1749681039942,-460.0,0.00021621,4]
[365455964,1749681039951,-460.0,0.00021621,4]
[365455966,1749681039961,-220.0,0.00021621,4]
[365455968,1749681039971,-460.0,0.00021621,4]
[365455970,1749681039980,-469.14,0.00021621,4]
[365455972,1749681039989,-460.0,0.00021621,4]
[365455974,1749681039999,-460.0,0.00021621,4]
[365455976,1749681040008,-460.0,0.00021621,4]
[365455978,1749681040018,-519.15,0.00021621,4]
[365455980,1749681040027,-1264.19,0.00021621,4]
[365455982,1749681040036,-1001.54,0.00021621,4]
[365455984,1749681040046,-666.5,0.00021621,4]
[365455986,1749681040055,-460.0,0.00021621,4]
[365455988,1749681040065,-656.08,0.00021622,4]
[365455990,1749681040074,-460.0,0.00021622,4]
[365455992,1749681040083,-460.0,0.00021622,4]
[365455994,1749681040094,-460.0,0.00021622,4]
[365455996,1749681040104,-460.0,0.00021622,4]
[365455999,1749681040113,-460.0,0.00021622,4]
[365456002,1749681040124,-460.0,0.00021622,4]
[365456004,1749681040133,-220.0,0.00021622,4]
[365456005,1749681040143,-460.0,0.00021622,4]
[365456007,1749681040151,-460.0,0.00021622,4]
[365456009,1749681040161,-460.0,0.00021622,4]
[365456011,1749681040170,-460.0,0.00021622,4]
[365456013,1749681040180,-460.0,0.00021622,4]
[365456015,1749681040189,-460.0,0.00021622,4]
[365456018,1749681040198,-460.0,0.00021622,4]
[365456020,1749681040208,-460.0,0.00021622,4]
[365456021,1749681040217,-460.0,0.00021622,4]
[365456023,1749681040227,-460.0,0.00021622,4]
[365456025,1749681040237,-460.0,0.00021622,4]
[365456028,1749681040248,-1096.46,0.00021622,4]
[365456030,1749681040258,-460.0,0.00021622,4]
[365456032,1749681040267,-460.0,0.00021622,4]
[365456034,1749681040277,-460.0,0.00021622,4]
[365456036,1749681040286,-460.0,0.00021643,4]
[365456038,1749681040296,-460.0,0.00021643,4]
[365456040,1749681040305,-643.1,0.00021643,2]
[365456043,1749681040315,-460.0,0.00021643,4]
[365456045,1749681040324,-460.0,0.00021643,4]
[365456047,1749681040333,-460.0,0.00021643,4]
[365456048,1749681040342,-460.0,0.00021643,4]
[365456051,1749681040356,-594.33677496,0.0002178,2]
[365456053,1749681040366,-563.30582452,0.00021824,4]
[365456054,1749681040376,-301.43630465,0.00021824,4]
[365456056,1749681040386,-1000.0,0.00021824,4]
[365456059,1749681040398,-460.0,0.00021824,4]
[365456061,1749681040408,-460.0,0.00021824,4]
[365456063,1749681040418,-460.0,0.00021824,4]
[365456065,1749681040428,-1034.59,0.00021824,4]
[365456067,1749681040438,-460.0,0.00021824,4]
[365456069,1749681040447,-500.0,0.00021883,2]
[365456071,1749681040456,-642.07,0.00021895,4]
[365456073,1749681040465,-915.35,0.00021895,4]
[365456075,1749681040475,-460.0,0.00021895,4]
[365456077,1749681040484,-460.0,0.00021895,4]
[365456079,1749681040493,-460.0,0.00021895,4]
[365456081,1749681040502,-460.0,0.00021895,4]
[365456083,1749681040512,-460.0,0.00021895,4]
[365456085,1749681040521,-460.0,0.00021895,4]
[365456087,1749681040530,-469.14,0.00021895,4]
[365456089,1749681040539,-460.0,0.00021895,4]
[365456091,1749681040548,-460.0,0.00021895,4]
[365456093,1749681040558,-460.0,0.00021895,4]
[365456095,1749681040568,-519.15,0.00021895,4]
[365456097,1749681040577,-1264.19,0.00021895,4]
[365456099,1749681040587,-1001.54,0.00021895,4]
[365456101,1749681040598,-666.5,0.00021895,4]
[365456103,1749681040608,-460.0,0.00021895,4]
[365456105,1749681040617,-656.08,0.00021896,4]
[365456107,1749681040628,-240.0,0.00021896,4]
[365456109,1749681040637,-460.0,0.00021896,4]
[365456111,1749681040647,-460.0,0.00021896,4]
[365456113,1749681040657,-460.0,0.00021896,4]
[365456115,1749681040666,-460.0,0.00021896,4]
[365456117,1749681040675,-460.0,0.00021896,4]